bitfinex/quotes_SOLUSD_20250811
["timestamp","ask_amount","ask_price","bid_price","bid_amount"]
[1754892698548,30.0,185.45,185.44,5.43425177]
[1754892698949,5.45205456,185.46,185.44,5.43425177]
[1754892699155,0.06,185.46,185.45,5.43425176]
[1754892701146,0.06,185.46,185.45,0.67]
[1754892701352,0.06,185.46,185.44,1e-08]
[1754892701734,0.06,185.46,185.44,0.67000001]
[1754892701939,0.06,185.46,185.45,0.67]
[1754892703486,0.06,185.46,185.45,5.43425176]
[1754892704854,0.06,185.46,185.45,0.67]
[1754892705150,0.06,185.46,185.45,5.43425176]
[1754892705842,0.06,185.46,185.45,0.67]
[1754892706061,0.06,185.46,185.45,5.43425176]
[1754892709895,0.06,185.46,185.45,95.03425176]
[1754892710060,0.06,185.46,185.45,5.43425176]
[1754892711278,0.06,185.46,185.45,0.67]
[1754892711477,0.06,185.46,185.45,5.43425176]
[1754892711854,0.06,185.46,185.45,0.67]
[1754892712769,0.06,185.46,185.45,5.43425176]
[1754892712967,0.06,185.46,185.45,0.67]
[1754892713163,0.06,185.46,185.45,5.43425176]
[1754892715288,0.06,185.46,185.44,37.78000001]
[1754892715498,0.06,185.46,185.44,1e-08]
[1754892715659,0.06,185.46,185.44,127.38000001]
[1754892716090,0.06,185.46,185.44,128.05000001]
[1754892716265,0.06,185.46,185.45,0.67]
[1754892716587,0.06,185.46,185.45,5.43425176]
[1754892717756,0.06,185.46,185.45,0.67]
[1754892718060,0.06,185.46,185.45,5.43425176]
[1754892718454,0.06,185.46,185.45,43.21425176]
[1754892720769,0.06,185.46,185.45,38.45]
[1754892721977,0.06,185.46,185.45,37.78]
[1754892722493,0.06,185.46,185.45,38.45]
[1754892724165,0.06,185.46,185.45,43.21425176]
[1754892724375,0.06,185.46,185.45,132.81425176]
[1754892725494,0.06,185.46,185.45,128.05]
[1754892725701,0.06,185.46,185.45,132.81425176]
[1754892728059,0.06,185.46,185.45,132.14425176]
[1754892728676,0.06,185.46,185.45,132.81425176]
[1754892729177,0.06,185.46,185.45,132.79425176]
[1754892734291,0.06,185.46,185.45,128.03]
[1754892734499,0.06,185.46,185.45,132.79425176]
[1754892734997,0.06,185.46,185.45,95.03425176]
[1754892735296,0.06,185.46,185.45,132.79425176]
[1754892739993,0.06,185.46,185.45,95.03425176]
[1754892740396,0.06,185.46,185.45,132.79425176]
[1754892741401,0.06,185.46,185.45,89.6]
[1754892741598,0.06,185.46,185.45,127.36]
[1754892742188,0.06,185.46,185.45,128.03]
[1754892743094,1.4088895,185.46,185.45,128.03]
[1754892743475,0.06,185.46,185.45,128.03]
[1754892743679,0.06,185.46,185.45,132.79425176]
[1754892744492,5.45199827,185.46,185.45,132.79425176]
[1754892744697,6.80088777,185.46,185.45,128.03]
[1754892744900,6.80088777,185.46,185.45,132.12425176]
[1754892745899,0.06,185.46,185.45,132.12425176]
[1754892746796,1.40886797,185.46,185.45,132.12425176]
[1754892747299,6.80086624,185.46,185.45,132.12425176]
[1754892748091,1.40886797,185.46,185.45,132.79425176]
[1754892748294,0.06,185.46,185.45,131.075593]
[1754892750172,0.06,185.46,185.45,132.78899178]
[1754892755679,0.06,185.46,185.45,147.89520735]
[1754892756379,0.06,185.47,185.46,115.54]
[1754892756586,0.06,185.47,185.46,120.98899178]
[1754892757006,0.06,185.47,185.46,31.44899178]
[1754892757312,0.06,185.47,185.46,31.9881916]
[1754892758186,0.06,185.47,185.46,37.38018987]
[1754892758587,0.06,185.47,185.46,31.9881916]
[1754892762211,0.06,185.47,185.46,37.38018987]
[1754892762387,0.06,185.47,185.46,52.48640544]
[1754892762587,0.06,185.47,185.46,142.02640544]
[1754892762789,0.06,185.47,185.46,141.48720562]
[1754892765407,0.06,185.47,185.46,136.09520735]
[1754892765710,0.06,185.47,185.46,158.03899178]
[1754892767299,0.06,185.47,185.46,120.29899178]
[1754892767491,0.06,185.47,185.46,158.03899178]
[1754892769587,0.06,185.47,185.46,158.72899178]
[1754892770208,0.06,185.47,185.46,173.83520735]
[1754892776513,0.06,185.47,185.46,173.14520735]
[1754892777002,0.78,185.47,185.46,132.03899178]
[1754892777204,0.06,185.47,185.46,132.75899178]
[1754892777411,0.06,185.47,185.46,147.86520735]
[1754892779924,0.06,185.47,185.46,173.86520735]
[1754892780316,0.06,185.47,185.46,179.25720562]
[1754892782708,0.06,185.47,185.46,136.12520735]
[1754892782901,0.06,185.47,185.46,173.84520735]
[1754892783434,0.06,185.48,185.47,89.48]
[1754892783603,0.06,185.48,185.47,94.23899178]
[1754892783805,0.06,185.48,185.47,94.93899178]
[1754892784730,0.06,185.48,185.47,100.33069933]
[1754892785035,0.06,185.48,185.47,100.86987008]
[1754892785334,0.06,185.48,185.47,95.47816253]
[1754892787627,0.06,185.48,185.47,133.19816253]
[1754892787832,0.06,185.48,185.47,132.65899178]
[1754892790732,0.06,185.51,185.5,41.10621557]
[1754892791028,0.06,185.51,185.5,178.36328268]
[1754892791231,0.06,185.51,185.5,45.86520735]
[1754892791434,0.06,185.51,185.5,83.58520735]
[1754892794733,0.1,185.52,185.51,15.10621557]
[1754892794909,0.06,185.53,185.52,45.86520735]
[1754892795110,0.06,185.53,185.52,84.12423279]
[1754892795324,0.06,185.53,185.52,174.30423279]
[1754892795523,0.06,185.53,185.52,173.76520735]
[1754892796123,0.06,185.53,185.52,183.44654663]
[1754892796834,0.06,185.53,185.52,179.15546177]
[1754892797338,0.06,185.54,185.53,31.30621557]
[1754892797650,0.06,185.55,185.53,37.30420373]
[1754892797844,0.06,185.55,185.54,58.28520735]
[1754892798314,0.06,185.55,185.54,58.82417468]
[1754892798942,0.06,185.55,185.54,26.49384806]
[1754892799240,0.06,185.55,185.54,64.21384806]
[1754892801136,0.06,185.55,185.54,64.19384806]
[1754892801341,0.06,185.55,185.54,153.67384806]
[1754892801641,0.06,185.55,185.54,153.13488073]
[1754892802339,0.06,185.55,185.54,115.43488073]
[1754892802542,0.06,185.55,185.54,153.13488073]
[1754892804549,0.06,185.55,185.54,152.43488073]
[1754892805122,0.06,185.55,185.54,153.13488073]
[1754892806943,0.06,185.55,185.54,147.04520735]
[1754892807126,0.06,185.55,185.54,153.13488073]
[1754892807450,0.06,185.57,185.55,89.42]
[1754892807745,0.06,185.57,185.55,94.17899178]
[1754892808631,0.71,185.56,185.55,104.52621557]
[1754892808832,0.71,185.56,185.55,89.42]
[1754892809034,0.71,185.56,185.55,127.12]
[1754892810445,6.09909247,185.56,185.55,127.12]
[1754892812449,6.09909247,185.56,185.55,89.42]
[1754892812662,6.09909247,185.56,185.55,127.12]
[1754892813036,10.85808425,185.56,185.55,37.7]
[1754892814431,10.85808425,185.56,185.54,37.7]
[1754892814641,10.14837469,185.55,185.54,37.7]
[1754892814852,10.83837469,185.55,185.54,37.7]
[1754892815555,6.07938291,185.55,185.54,37.7]
[1754892822061,5.38938291,185.55,185.54,37.7]
[1754892829258,0.06,185.56,185.54,38.39]
[1754892829453,0.06,185.56,185.55,0.69]
[1754892829979,0.06,185.56,185.54,37.7]
[1754892829980,5.44916314,185.56,185.54,37.7]
[1754892830561,9.18320267,185.56,185.54,37.7]
[1754892831668,3.73403953,185.55,185.52,89.45]
[1754892831849,3.04403953,185.54,185.52,127.15]
[1754892832176,3.73403953,185.53,185.52,89.45]
[1754892832357,9.12400341,185.53,185.52,0.03]
[1754892833752,8.43400341,185.53,185.52,0.03]
[1754892833955,5.38996388,185.53,185.52,0.03]
[1754892834476,6.07996388,185.53,185.52,0.03]
[1754892834771,5.38996388,185.53,185.52,0.03]
[1754892838076,10.14741303,185.53,185.52,0.03]
[1754892838883,5.38996388,185.53,185.52,0.03]
[1754892839455,10.83741303,185.53,185.52,0.03]
[1754892840678,40.83741303,185.53,185.52,0.03]
[1754892842867,36.07996388,185.53,185.52,0.03]
[1754892843070,40.83741303,185.53,185.52,0.03]
[1754892844990,36.07996388,185.53,185.52,0.03]
[1754892845185,40.83741303,185.53,185.52,0.03]
[1754892845994,35.38996388,185.53,185.52,0.03]
[1754892846200,40.14741303,185.53,185.52,0.03]
[1754892849086,5.38996388,185.53,185.52,0.71]
[1754892849563,10.14741303,185.53,185.52,0.71]
[1754892850576,10.14741303,185.53,185.52,0.03]
[1754892852089,40.14741303,185.53,185.52,0.03]
[1754892852878,41.49605175,185.53,185.52,0.03]
[1754892853185,41.49605147,185.53,185.52,0.03]
[1754892853490,41.49605147,185.53,185.52,0.71]
[1754892853684,40.14741303,185.53,185.52,0.03]
[1754892854066,41.49602995,185.53,185.52,0.03]
[1754892854266,39.78385064,185.53,185.52,0.03]
[1754892854873,36.7385808,185.53,185.52,0.03]
[1754892855192,39.78385064,185.53,185.52,0.03]
[1754892859395,9.78385064,185.53,185.52,0.03]
[1754892859796,6.7385808,185.53,185.52,0.03]
[1754892860089,9.78385064,185.53,185.52,0.03]
[1754892863187,39.78385064,185.53,185.52,0.03]
[1754892863894,40.50385064,185.53,185.52,0.03]
[1754892864197,36.7385808,185.53,185.52,0.03]
[1754892864398,39.78385064,185.53,185.52,0.03]
[1754892864704,77.48385064,185.53,185.52,0.03]
[1754892866475,47.48385064,185.53,185.52,0.03]
[1754892866679,48.20385064,185.53,185.52,0.03]
[1754892867378,50.36222164,185.53,185.52,0.03]
[1754892867681,80.36222164,185.53,185.52,0.03]
[1754892867878,78.29360472,185.53,185.52,0.03]
[1754892868199,79.64231509,185.53,185.52,0.03]
[1754892870012,79.6422828,185.53,185.52,0.03]
[1754892871812,80.3022828,185.53,185.52,0.03]
[1754892874100,79.6422828,185.53,185.52,0.03]
[1754892876719,80.3022828,185.53,185.52,0.03]
[1754892877597,79.6422828,185.53,185.52,0.03]
[1754892879801,80.3022828,185.53,185.52,0.03]
[1754892880001,84.81261804,185.53,185.52,0.03]
[1754892880402,80.3022828,185.53,185.52,0.03]
[1754892881426,80.3022828,185.53,185.5,0.03]
[1754892881635,3.04526984,185.51,185.5,0.03]
[1754892881805,4.39394792,185.51,185.5,0.03]
[1754892882498,39.7844929,185.51,185.5,0.03]
[1754892882905,39.78458339,185.51,185.5,0.03]
[1754892884525,39.78458339,185.51,185.5,0.74]
[1754892885424,9.78458339,185.51,185.5,0.74]
[1754892885725,9.78458339,185.51,185.5,0.03]
[1754892886397,6.73931355,185.51,185.5,0.03]
[1754892886600,9.78458339,185.51,185.5,0.03]
[1754892888316,39.78458339,185.51,185.5,0.03]
[1754892889128,40.44458339,185.51,185.5,0.03]
[1754892889332,42.60318739,185.51,185.5,0.03]
[1754892889505,79.62318739,185.51,185.5,0.03]
[1754892891422,79.62318739,185.51,185.5,0.74]
[1754892891635,77.46458339,185.51,185.5,0.74]
[1754892893435,77.46458339,185.51,185.5,0.03]
[1754892894828,78.12458339,185.51,185.5,0.03]
[1754892895141,80.28318639,185.51,185.5,0.03]
[1754892895324,79.62318639,185.51,185.5,0.03]
[1754892897840,77.46458339,185.51,185.5,0.03]
[1754892898026,78.62794739,185.51,185.5,0.03]
[1754892898537,73.42407455,185.51,185.5,0.74]
[1754892898841,76.46934439,185.51,185.5,0.74]
[1754892900039,76.46934439,185.51,185.5,0.03]
[1754892900411,76.46934439,185.51,185.48,0.03]
[1754892900646,3.04526984,185.49,185.48,1e-08]
[1754892900853,72.07403841,185.49,185.47,1e-08]
[1754892901029,4.39403841,185.48,185.47,1e-08]
[1754892902342,41.94452427,185.48,185.47,1e-08]
[1754892903741,36.74018543,185.48,185.47,0.70000001]
[1754892903939,36.74018543,185.48,185.47,3.74526985]
[1754892904247,31.34876857,185.48,185.47,3.74526985]
[1754892904535,30.0,185.48,185.47,3.74526985]
[1754892904836,36.74025944,185.48,185.47,3.74526985]
[1754892905058,36.74028097,185.48,185.47,3.74526985]
[1754892905538,6.74028097,185.48,185.47,3.74526985]
[1754892905925,6.80028097,185.48,185.47,3.74526985]
[1754892906249,6.80028097,185.48,185.47,0.70000001]
[1754892906556,5.45141686,185.48,185.47,0.70000001]
[1754892907551,0.06,185.48,185.47,3.74526985]
[1754892908444,0.06,185.48,185.47,113.66319297]
[1754892908828,0.06,185.48,185.47,93.16526985]
[1754892909451,0.06,185.48,185.47,90.12000001]
[1754892909632,0.06,185.48,185.47,0.70000001]
[1754892909834,0.06,185.48,185.47,3.74526985]
[1754892913853,0.06,185.48,185.47,93.16526985]
[1754892915554,0.06,185.48,185.47,130.82526985]
[1754892917253,0.06,185.48,185.47,151.32319297]
[1754892917638,0.06,185.48,185.47,145.93148542]
[1754892921536,0.06,185.48,185.47,142.88621558]
[1754892921737,0.06,185.48,185.47,41.40526985]
[1754892925757,0.06,185.48,185.47,131.00526985]
[1754892925959,0.06,185.48,185.47,130.30526985]
[1754892926154,0.06,185.48,185.47,131.00526985]
[1754892926747,0.06,185.48,185.47,146.11148542]
[1754892928264,0.06,185.48,185.47,130.30526985]
[1754892929774,0.06,185.48,185.47,131.00526985]
[1754892930080,0.06,185.48,185.47,93.34526985]
[1754892930257,0.06,185.48,185.47,131.00526985]
[1754892932556,0.06,185.48,185.47,89.60000001]
[1754892932749,0.77,185.48,185.47,127.24000001]
[1754892933071,0.77,185.48,185.47,89.60000001]
[1754892933287,0.06,185.48,185.47,89.60000001]
[1754892934776,5.16418101,185.48,185.47,1e-08]
[1754892935292,35.16418101,185.48,185.47,1e-08]
[1754892935777,31.40895556,185.48,185.47,1e-08]
[1754892936154,36.80037242,185.48,185.47,1e-08]
[1754892937685,36.80032403,185.48,185.47,1e-08]
[1754892938284,35.45141686,185.48,185.47,1e-08]
[1754892938698,35.45141686,185.48,185.47,5.45996398]
[1754892938983,0.06,185.48,185.47,95.05996398]
[1754892940374,0.06,185.48,185.47,89.60000001]
[1754892940898,0.24,185.48,185.47,89.60000001]
[1754892941260,0.06,185.48,185.47,89.60000001]
[1754892942278,5.45141686,185.48,185.47,127.24000001]
[1754892943391,12.27026787,185.48,185.47,1e-08]
[1754892944371,44.42933687,185.48,185.47,1e-08]
[1754892946374,44.42954568,185.48,185.47,1e-08]
[1754892949770,43.71954568,185.48,185.47,1e-08]
[1754892950993,13.71954568,185.48,185.47,0.70000001]
[1754892952789,43.71954568,185.48,185.47,1e-08]
[1754892954882,38.95958171,185.48,185.47,1e-08]
[1754892955085,42.37044983,185.48,185.47,1e-08]
[1754892955376,43.71941759,185.48,185.47,1e-08]
[1754892956792,38.95945362,185.48,185.47,1e-08]
[1754892956990,43.71941759,185.48,185.47,1e-08]
[1754892958784,38.95945362,185.48,185.47,1e-08]
[1754892958985,43.71941759,185.48,185.47,1e-08]
[1754892959585,44.42941759,185.48,185.47,1e-08]
[1754892960081,44.42941759,185.48,185.46,1e-08]
[1754892960082,77.30945362,185.48,185.46,1e-08]
[1754892960278,6.77893173,185.47,185.46,1e-08]
[1754892960499,36.77893173,185.47,185.46,1e-08]
[1754892961207,42.17063928,185.47,185.46,1e-08]
[1754892961399,14.32994228,185.47,185.46,1e-08]
[1754892961606,44.32994228,185.47,185.46,1e-08]
[1754892962900,43.65994228,185.47,185.46,1e-08]
[1754892963293,44.32994228,185.47,185.46,1e-08]
[1754892965987,44.32994228,185.47,185.45,1e-08]
[1754892966211,74.41893173,185.46,185.45,1e-08]
[1754892967289,76.57835073,185.46,185.45,1e-08]
[1754892967497,75.90835073,185.46,185.45,1e-08]
[1754892967801,81.970349,185.46,185.45,1e-08]
[1754892968912,81.300349,185.46,185.45,1e-08]
[1754892970598,76.54038503,185.46,185.45,1e-08]
[1754892970818,81.300349,185.46,185.45,1e-08]
[1754892971401,43.660349,185.46,185.45,0.67000001]
[1754892972908,43.660349,185.46,185.45,1e-08]
[1754892974118,43.660349,185.46,185.45,0.67000001]
[1754892974898,43.660349,185.46,185.45,1e-08]
[1754892975293,81.970349,185.46,185.45,1e-08]
[1754892976196,81.300349,185.46,185.45,1e-08]
[1754892976509,76.54038503,185.46,185.45,0.67000001]
[1754892976717,38.90038503,185.46,185.45,0.67000001]
[1754892977098,43.660349,185.46,185.45,0.67000001]
[1754892977857,43.660349,185.46,185.45,1e-08]
[1754892978040,38.90038503,185.46,185.45,1e-08]
[1754892978319,44.330349,185.46,185.45,1e-08]
[1754892978489,43.660349,185.46,185.45,1e-08]
[1754892980220,38.90038503,185.46,185.45,1e-08]
[1754892980388,43.660349,185.46,185.45,1e-08]
[1754892986234,44.330349,185.46,185.45,1e-08]
[1754892987342,43.660349,185.46,185.45,1e-08]
[1754892988337,43.660349,185.46,185.45,0.67000001]
[1754892989154,38.90038503,185.46,185.45,0.67000001]
[1754892989323,43.66055595,185.46,185.45,0.67000001]
[1754892990055,44.38055595,185.46,185.44,1e-08]
[1754892990255,6.10913868,185.45,185.44,1e-08]
[1754892990460,36.10913868,185.45,185.44,1e-08]
[1754892990758,38.26844068,185.45,185.44,1e-08]
[1754892991639,43.6607297,185.45,185.44,1e-08]
[1754892992141,43.66083822,185.45,185.44,1e-08]
[1754892994053,30.75996397,185.43,185.38,0.69]
[1754892994264,4.75996397,185.39,185.34,4.75996397]
[1754892994548,4.75996397,185.39,185.33,15.30621557]
[1754892994549,1.34928323,185.38,185.33,15.30621557]
[1754892994846,1.34928323,185.38,185.34,4.75996397]
[1754892995058,1.34928323,185.38,185.33,0.2]
[1754892995267,6.1092472,185.38,185.33,4.95996397]
[1754892995430,16.198266,185.39,185.34,4.75996397]
[1754892995625,16.198266,185.39,185.35,4.75996397]
[1754892995839,4.75996397,185.4,185.35,4.75996397]
[1754892996025,6.7436377,185.39,185.35,4.75996397]
[1754892996225,5.39403419,185.39,185.36,0.66]
[1754892997232,10.15399816,185.39,185.34,4.75996397]
[1754892997536,10.15399816,185.39,185.35,0.66]
[1754892997852,5.39403419,185.39,185.35,5.41996397]
[1754892998034,5.39403419,185.39,185.35,4.75996397]
[1754892998237,5.39403419,185.39,185.36,0.66]
[1754892998828,5.39403419,185.39,185.35,4.75996397]
[1754892998829,37.62,185.41,185.37,5.41996397]
[1754892999041,37.62,185.41,185.37,4.75996397]
[1754892999244,53.818267,185.41,185.37,4.75996397]
[1754892999656,59.29823097,185.41,185.37,0.66]
[1754892999821,5.39375431,185.4,185.37,5.41996397]
[1754893000379,5.39375431,185.4,185.37,0.66]
[1754893000531,5.39375431,185.4,185.36,4.75996397]
[1754893000856,6.11375431,185.4,185.36,5.41996397]
[1754893001054,0.72,185.39,185.33,5.61996397]
[1754893001343,5.47996397,185.39,185.34,4.75996397]
[1754893001528,0.72,185.38,185.34,4.75996397]
[1754893001855,5.39461617,185.37,185.34,0.66]
[1754893002034,5.39461617,185.37,185.34,5.41996397]
[1754893003249,5.39461617,185.37,185.35,4.75996397]
[1754893003922,5.39461617,185.37,185.34,0.66]
[1754893004129,5.39461617,185.37,185.34,5.41996397]
[1754893004334,6.11461617,185.37,185.33,4.95996397]
[1754893004846,0.72,185.36,185.33,0.2]
[1754893005057,5.39519827,185.35,185.33,0.2]
[1754893005554,5.39519827,185.35,185.33,4.95996397]
[1754893005960,5.39519827,185.35,185.33,5.61996397]
[1754893006267,5.39519827,185.35,185.34,4.75996397]
[1754893006846,5.39519827,185.35,185.33,0.2]
[1754893007133,5.3949072,185.36,185.34,4.75996397]
[1754893007338,6.1149072,185.36,185.34,4.75996397]
[1754893008152,6.1149072,185.36,185.33,4.95996397]
[1754893008654,0.72,185.35,185.33,0.2]
[1754893009245,21.5957982,185.36,185.33,0.2]
[1754893009555,22.3157982,185.36,185.33,0.2]
[1754893010353,5.39432516,185.38,185.34,5.41996397]
[1754893010544,5.39432516,185.38,185.35,4.75996397]
[1754893010857,30.0,185.36,185.35,4.75996397]
[1754893011437,35.39504966,185.36,185.34,5.41996397]
[1754893011759,5.39504966,185.36,185.34,5.41996397]
[1754893013257,5.39504966,185.36,185.33,4.95996397]
[1754893013457,5.39461617,185.37,185.33,5.61996397]
[1754893013652,5.39461617,185.37,185.33,4.95996397]
[1754893013863,0.72,185.36,185.33,4.95996397]
[1754893014357,0.72,185.35,185.34,0.03]
[1754893014742,5.47996397,185.35,185.34,0.03]
[1754893015586,10.87516224,185.35,185.34,0.03]
[1754893015860,13.03551424,185.35,185.34,0.03]
[1754893017046,43.03551424,185.35,185.34,0.03]
[1754893017451,38.27555027,185.35,185.34,0.03]
[1754893018570,43.03551424,185.35,185.34,0.03]
[1754893019546,38.27555027,185.35,185.34,0.03]
[1754893022171,44.38556264,185.35,185.33,1e-08]
[1754893022367,44.43001237,185.34,185.33,1e-08]
[1754893022578,74.43001237,185.34,185.33,1e-08]
[1754893022967,76.59083137,185.34,185.33,1e-08]
[1754893023682,81.98632074,185.34,185.33,1e-08]
[1754893024461,81.98632074,185.34,185.32,1e-08]
[1754893024658,51.91643361,185.33,185.32,1e-08]
[1754893025060,26.0,185.3,185.28,1e-08]
[1754893025365,43.75021804,185.29,185.28,1e-08]
[1754893025569,74.45021804,185.29,185.28,1e-08]
[1754893025874,49.84716336,185.29,185.28,1e-08]
[1754893026253,48.49690929,185.29,185.28,1e-08]
[1754893026669,78.49690929,185.29,185.28,1e-08]
[1754893026870,79.84748599,185.29,185.28,1e-08]
[1754893028174,78.49690929,185.29,185.28,1e-08]
[1754893028972,36.09694532,185.29,185.28,1e-08]
[1754893029187,78.49690929,185.29,185.28,1e-08]
[1754893031671,79.84752459,185.29,185.28,1e-08]
[1754893032065,94.95378206,185.29,185.28,1e-08]
[1754893033267,57.31378206,185.29,185.28,1e-08]
[1754893033589,94.95378206,185.29,185.28,1e-08]
[1754893034391,94.95378206,185.29,185.17,4.75996397]
[1754893034392,26.0,185.26,185.17,0.67]
[1754893034570,4.75996397,185.22,185.17,5.42996397]
[1754893034778,37.64,185.21,185.18,0.67]
[1754893035081,37.64,185.21,185.13,117.30939633]
[1754893035277,37.64,185.21,185.18,0.67]
[1754893035488,37.64,185.21,185.19,0.67]
[1754893035686,5.39956803,185.2,185.19,0.67]
[1754893036268,5.39956803,185.2,185.17,4.75996397]
[1754893036489,5.39956803,185.2,185.18,0.67]
[1754893036891,5.39956803,185.2,185.19,0.67]
[1754893037498,5.39956803,185.2,185.17,4.75996397]
[1754893037704,5.39956803,185.2,185.16,4.75996397]
[1754893037878,5.39956803,185.2,185.18,0.67]
[1754893038385,5.39956803,185.2,185.17,4.75996397]
[1754893038582,5.39956803,185.2,185.19,0.67]
[1754893039171,5.39956803,185.2,185.17,4.75996397]
[1754893039489,5.39956803,185.2,185.18,0.67]
[1754893039804,5.39956803,185.2,185.17,0.67]
[1754893039987,21.61534503,185.2,185.17,0.67]
[1754893040782,59.25534503,185.2,185.17,0.67]
[1754893041690,64.015309,185.2,185.17,0.67]
[1754893042101,47.799532,185.2,185.17,0.67]
[1754893042494,64.01531,185.2,185.17,0.67]
[1754893043392,59.25534603,185.2,185.17,0.67]
[1754893043707,64.01531,185.2,185.17,0.67]
[1754893044384,59.25534603,185.2,185.17,0.67]
[1754893045289,61.99845208,185.2,185.15,5.42996397]
[1754893045582,78.21598308,185.2,185.16,5.42996397]
[1754893046901,73.45601911,185.2,185.16,0.67]
[1754893047105,73.45601911,185.2,185.16,5.42996397]
[1754893047325,0.7,185.19,185.13,54.36939633]
[1754893047486,72.75601911,185.2,185.16,4.75996397]
[1754893047818,43.03956803,185.2,185.17,4.75996397]
[1754893048005,43.03956803,185.2,185.17,5.42996397]
[1754893048210,59.25622203,185.2,185.17,5.42996397]
[1754893048390,59.95622203,185.2,185.15,0.67]
[1754893048590,43.73956803,185.2,185.16,5.42996397]
[1754893048792,59.95622203,185.2,185.16,5.42996397]
[1754893050014,59.95622203,185.2,185.16,4.92996397]
[1754893050219,0.66,185.19,185.16,4.75996397]
[1754893050595,5.4001512,185.18,185.16,4.75996397]
[1754893051693,5.4001512,185.18,185.17,4.75996397]
[1754893053202,37.66,185.22,185.17,5.02996397]
[1754893053497,43.71898499,185.22,185.2,4.75996397]
[1754893053706,43.71898499,185.22,185.19,4.75996397]
[1754893054103,0.66,185.21,185.18,4.75996397]
[1754893054413,5.39956803,185.2,185.18,4.75996397]
[1754893054610,0.66,185.19,185.17,4.75996397]
[1754893054830,0.66,185.18,185.16,4.75996397]
[1754893055323,0.66,185.18,185.14,37.66]
[1754893055502,0.66,185.18,185.16,4.75996397]
[1754893056000,6.06033848,185.18,185.16,4.75996397]
[1754893056200,6.06033848,185.18,185.14,37.93]
[1754893056501,6.06033848,185.18,185.16,4.75996397]
[1754893057190,0.66,185.19,185.16,4.75996397]
[1754893057608,0.66,185.19,185.17,4.75996397]
[1754893057819,16.215778,185.21,185.18,4.75996397]
[1754893057820,21.6150576,185.21,185.18,4.75996397]
[1754893058004,5.3992796,185.21,185.19,4.75996397]
[1754893058209,6.0592796,185.21,185.19,4.75996397]
[1754893058796,6.0592796,185.21,185.17,53.66939633]
[1754893059024,0.66,185.2,185.17,53.66939633]
[1754893059317,5.3998596,185.19,185.18,4.75996397]
[1754893060220,14.15708726,185.23,185.17,53.93939633]
[1754893060455,6.05898499,185.22,185.18,4.75996397]
[1754893060596,5.39898499,185.22,185.18,4.75996397]
[1754893060796,0.66,185.21,185.18,4.75996397]
[1754893061526,5.39946373,185.21,185.18,4.75996397]
[1754893062029,6.05946373,185.21,185.19,4.75996397]
[1754893062204,0.66,185.2,185.18,4.75996397]
[1754893063029,0.66,185.2,185.16,53.69939633]
[1754893063235,6.0598596,185.19,185.17,4.75996397]
[1754893063914,5.3998596,185.19,185.17,4.75996397]
[1754893064229,6.0598596,185.19,185.17,4.75996397]
[1754893065410,0.66,185.18,185.16,53.69939633]
[1754893065642,0.66,185.17,185.16,58.4593603]
[1754893065931,0.66,185.17,185.16,53.69939633]
[1754893066112,0.66,185.17,185.16,0.03]
[1754893067428,6.06044283,185.17,185.16,0.03]
[1754893067615,10.8204068,185.17,185.16,0.03]
[1754893067810,15.6103708,185.17,185.16,0.03]
[1754893068113,6.06044283,185.17,185.16,0.03]
[1754893068313,5.40044283,185.17,185.16,4.78996397]
[1754893068910,10.1901719,185.18,185.16,4.78996397]
[1754893069113,10.1901719,185.18,185.17,4.75996397]
[1754893069611,5.4002079,185.18,185.17,4.75996397]
[1754893070334,5.419964,185.21,185.17,4.75996397]
[1754893070539,0.66,185.2,185.17,4.75996397]
[1754893070837,0.66,185.2,185.18,4.75996397]
[1754893071825,6.05956803,185.2,185.18,4.75996397]
[1754893072231,5.39956803,185.2,185.19,4.75996397]